Cogmind - Beta 12 *** ADVENTURER MODE // 2023.12.31 @ 20:59:26 Player: Darcyisverycute Result: Destroyed by D-53 Grenadier with Mini Grenade Launcher Performance ------------- Evolutions (0) 0 Regions Visited (2) 400 Robots Destroyed (9) 45 Value Destroyed (175) 175 Prototype IDs (0) 0 Alien Tech Used (0) 0 Bonus (0) 0 TOTAL SCORE: 620 Bonus ------- None Cogmind --------- Core Integrity 0/250 Matter 142/300 Energy 250/250 System Corruption 1% Temperature Cool (2) Movement Core (150) Ox2 Location -10/Mines Parts ------- > --- POWER (1) -------- (None) > --- PROPULSION (2) --- (None) > --- UTILITY (2) ------ Small Storage Unit Medium Battery > --- WEAPON (2) ------- (None) > --- INVENTORY (8) ---- Light Ion Engine Aluminum Leg Aluminum Leg Flight Unit Flight Unit Flight Unit Flight Unit Makeshift Hammer Peak State ------------ > --- POWER ------------ Ion Engine > --- PROPULSION ------- Aluminum Leg Aluminum Leg > --- UTILITY ---------- Small Storage Unit Medium Battery > --- WEAPON ----------- Light Assault Rifle Rocket Launcher > --- INVENTORY -------- Light Ion Engine Aluminum Leg Flight Unit Flight Unit Flight Unit Flight Unit Makeshift Hammer [Rating: 9] Favorites ----------- Power Ion Engine Engine Ion Engine Propulsion Aluminum Leg Leg Aluminum Leg Utility Small Storage Unit Storage Small Storage Unit Weapon Light Assault Rifle Ballistic Gun Light Assault Rifle Launcher Rocket Launcher Build | -11 -10 -10 ------- Run | Jun Mat Min Slots Evolved . | . . . Power . | . . . Propulsion . | . . . Utility . | . . . Weapon . | . . . Parts Attached 8 | 6 . 2 Power 1 | 1 . . Engine 1 | 1 . . Core . | . . . Reactor . | . . . Propulsion 2 | 2 . . Treads . | . . . Leg 2 | 2 . . Wheel . | . . . Hover . | . . . Flight . | . . . Utility 2 | 1 . 1 Device . | . . . Storage 2 | 1 . 1 Processor . | . . . Hackware . | . . . Protection . | . . . Artifact . | . . . Weapon 3 | 2 . 1 Energy Gun . | . . . Energy Cannon . | . . . Ballistic Gun 2 | 2 . . Ballistic Cannon . | . . . Launcher 1 | . . 1 Special Weapon . | . . . Impact Weapon . | . . . Slashing Weapon . | . . . Piercing Weapon . | . . . Special Melee Weapon . | . . . Unidentified Prototypes . | . . . Parts Lost 5 | . . 5 Power 1 | . . 1 Propulsion 1 | . . 1 Utility . | . . . Weapon 3 | . . 3 Highest Loss Streak 4 | . . 4 To Critical Strikes . | . . . Average Slot Usage (%) 90 | . 85 91 Engine 14 | . 14 14 Leg 24 | . 28 23 Storage 22 | . 14 25 Ballistic Gun 22 | . 28 21 Launcher 4 | . . 6 Naked Turns . | . . . Heaviest Build 17 | 13 13 17 Greatest Support 20 | 20 20 20 Greatest Overweight (x) 4 | 4 . 1 Average Overweight (x) . | 1 . . Largest Inventory Capacity 8 | 8 8 8 Average Capacity 7 | 7 8 8 Most Carried 8 | 3 7 8 Average Carried 6 | 1 4 7 Final Capacity 8 | 8 8 8 Final Carried 8 | 1 7 8 Class Distribution -------------------- 100% | Mutant Dominant Class ---------------- Mutant | -10/Materials Mutant | -10/Mines Resources | -11 -10 -10 ----------- Run | Jun Mat Min Matter Collected 270 | 130 35 105 Remotely . | . . . Salvage Created 251 | . 139 112 Parts 15 | . 10 5 Haulers Intercepted . | . . . Recyclers Shooed . | . . . Parts Field Recycled . | . . . Retrieved Matter . | . . . Parts Self-Destructed . | . . . Prevented . | . . . Kills | -11 -10 -10 ------- Run | Jun Mat Min Combat Hostiles Destroyed 16 | . 5 11 Guns 9 | . 5 4 AOE 7 | . . 7 Classes Destroyed 3 | . 2 1 Swarmer 6 | . 3 3 Grunt 3 | . 2 1 Assembled 7 | . . 7 Best Kill Streak 6 | . 3 6 Combat Bots Only 6 | . 3 6 Max Kills in Single Turn 2 | . 2 2 Gunslinging 1 | . 1 . Exploded 2 | . . 2 Melee . | . . . Uniques/NPCs Destroyed . | . . . Combat | -11 -10 -10 -------- Run | Jun Mat Min Damage Taken 726 | . 237 489 Core 283 | . 67 216 Absorbed by Shields . | . . . Core Remaining (%) 100 | 100 . . Volleys Fired 25 | . 13 12 Largest 2 | . 2 2 Hottest 53 | . 40 53 Shots Fired 50 | . 26 24 Gun 42 | . 26 16 Cannon . | . . . Launcher 8 | . . 8 Special . | . . . Kinetic 42 | . 26 16 Thermal . | . . . Explosive 8 | . . 8 Electromagnetic . | . . . Robot Hit Streak 6 | . 6 5 Robot Miss Streak 2 | . 2 2 Penetration Max . | . . . Secondary Targets 4 | . 2 2 Max Gunslinging Chain 1 | . 1 1 Shots Hit Robots 33 | . 18 15 Core Hits 32 | . 9 23 Critical Kills . | . . . Critical Parts Destroyed 1 | . 1 . Critical Strikes 1 | . 1 . Destroy 1 | . 1 . Melee Attacks . | . . . Impact . | . . . Slashing . | . . . Piercing . | . . . Sneak Attacks . | . . . Combat Hostiles . | . . . Follow-up Attacks . | . . . Damage Inflicted 668 | . 191 477 Guns 293 | . 191 102 Cannons . | . . . Explosions 375 | . . 375 Melee . | . . . Ramming . | . . . Kinetic 293 | . 191 102 Thermal . | . . . Explosive 375 | . . 375 Electromagnetic . | . . . Impact . | . . . Slashing . | . . . Piercing . | . . . Highest Corruption 1 | . 1 1 Average Corruption 1 | . 1 1 Corruption Purged . | . . . Corruption Blocked . | . . . Effects 1 | . . 1 Matter Fused 1 | . . 1 Overload Shots . | . . . Overflow Damage 15 | . . 15 Projectiles . | . . . Explosions 15 | . . 15 Melee . | . . . Knockbacks . | . . . Impact . | . . . Kinetic . | . . . Secondary . | . . . Self-Inflicted Damage 113 | . . 113 Shots 5 | . . 5 Rammed . | . . . Targets Rammed . | . . . Kicked . | . . . Crushed . | . . . Highest Temperature 44 | . 39 44 Average Temperature 17 | . 17 16 Received Heat Transfer 233 | . 153 80 Siege Activations . | . . . Robots Corrupted . | . . . Combat Hostiles . | . . . Parts Fried . | . . . Impact Corruptions . | . . . Robots Melted . | . . . Combat Hostiles . | . . . Parts Melted . | . . . Heat Transferred . | . . . Parts Sabotaged . | . . . Parts Stolen . | . . . Parts Stripped . | . . . Power Chain Reactions . | . . . Missiles Intercepted . | . . . Alert | -11 -10 -10 ------- Run | Jun Mat Min Peak Influence 223 | . 135 223 Initial 44 | . . 44 Average 110 | . 73 140 Maximum Alert Level 1 | . . 1 Low Security (%) 75 | 100 100 64 Level 1 24 | . . 35 Level 2 . | . . . Level 3 . | . . . Level 4 . | . . . Level 5 . | . . . High Security . | . . . Max Security . | . . . Squads Dispatched . | . . . Investigation . | . . . Extermination . | . . . Reinforcement . | . . . Assault . | . . . Garrison . | . . . Intercept . | . . . Searches Triggered . | . . . Construction Impeded . | . . . Haulers Reinforced . | . . . Active Scanning Responses . | . . . Cargo Convoy Interrupts . | . . . Stealth | -11 -10 -10 --------- Run | Jun Mat Min Distress Signals 1 | . . 1 Communications Jammed . | . . . Distress Signals . | . . . Times Spotted 21 | . 6 15 Peak Tracking Total 8 | . 3 8 Tactical Retreats 1 | . . 1 Traps | -11 -10 -10 ------- Run | Jun Mat Min Traps Triggered . | . . . Indirectly . | . . . Trap Hack Attempts . | . . . Triggered . | . . . Disarmed . | . . . Reprogrammed . | . . . Reused . | . . . Traps Extracted . | . . . Installed . | . . . Triggered . | . . . Machines | -11 -10 -10 ---------- Run | Jun Mat Min Machines Disabled . | . . . Max in Single Turn . | . . . Machines Repaired . | . . . Machines Sabotaged . | . . . Overloaded Fab Kills . | . . . Hacking | -11 -10 -10 --------- Run | Jun Mat Min Machines Accessed 1 | . 1 . Terminals . | . . . Fabricators . | . . . Repair Stations . | . . . Recycling Units 1 | . 1 . Scanalyzers . | . . . Garrison Access . | . . . Total Hacks 5 | . 5 . Successful 4 | . 4 . Failed 1 | . 1 . Catastrophic . | . . . Database Lockouts . | . . . Manual . | . . . Terminals . | . . . Fabricators . | . . . Repair Stations . | . . . Recycling Units 5 | . 5 . Scanalyzers . | . . . Garrison Access . | . . . Terminal Hacks . | . . . Fabricator Hacks . | . . . Repair Station Hacks . | . . . Recycling Unit Hacks 4 | . 4 . Report Inventory 1 | . 1 . Retrieve Matter 2 | . 2 . Retrieve Components 1 | . 1 . Scanalyzer . | . . . Garrison Access Hacks . | . . . Unauthorized Hacks . | . . . Terminals . | . . . Fabricators . | . . . Repair Stations . | . . . Recycling Units . | . . . Scanalyzers . | . . . Garrison Access . | . . . Data Cores Recovered . | . . . Used . | . . . Hacking Detections 1 | . 1 . Full Trace Events 1 | . 1 . Feedback Events 1 | . 1 . Corruption 1 | . 1 . Feedback Blocked . | . . . Robot Schematics Acquired . | . . . Robots Built . | . . . Authchips . | . . . Time . | . . . Total Robot Build Rating . | . . . Part Schematics Acquired . | . . . Parts Built . | . . . Authchips . | . . . Time . | . . . Total Part Build Rating . | . . . Parts Repaired . | . . . Time . | . . . Parts Recycled . | . . . Recycled Matter . | . . . Retrieved Matter . | . . . Retrieved Components 3 | . 3 . Parts Scanalyzed . | . . . Part Schematics Acquired . | . . . Parts Damaged . | . . . Bothacking | -11 -10 -10 ------------ Run | Jun Mat Min Used RIF Installer . | . . . Robots Hacked . | . . . Non-combat . | . . . Combat . | . . . Robot Hacks Applied . | . . . Relay Couplers Released . | . . . Fabnet Peak Effective % . | . . . Robots Rewired . | . . . Allies Hacked . | . . . Hacks Repelled . | . . . Allies | -11 -10 -10 -------- Run | Jun Mat Min Total Allies . | . . . Largest Group . | . . . Highest-Rated Group . | . . . Highest-Rated Ally . | . . . Total Orders . | . . . Ally Attacks . | . . . Total Damage . | . . . Kills . | . . . Allies Corrupted . | . . . Allies Melted . | . . . Intel | -11 -10 -10 ------- Run | Jun Mat Min Robot Analysis Total . | . . . Derelict Logs Recovered 1 | . . 1 Drone Launches . | . . . Drone Recoveries . | . . . Exploration | -11 -10 -10 ------------- Run | Jun Mat Min Turns Passed 537 | 61 115 361 Spaces Moved 312 | 32 61 219 Core 17 | 17 . . Treads . | . . . Legs 295 | 15 61 219 Wheels . | . . . Hover . | . . . Flight . | . . . Fastest Speed 50 | 50 120 120 Average Speed 136 | 153 120 139 Slowest Speed 250 | 250 120 190 Overloaded Moves . | . . . Propulsion Burnouts . | . . . Robots Hopped . | . . . Cave-ins Triggered . | . . . Exploration Rate (%) 32 | 3 17 76 Regions Visited 2 Branch Regions 1 Pre-discovered Areas . | . . . Known Exits Taken . | . . . Unknown Exits Taken 2 | 1 1 . Scrap Searched 2 | . . 2 Spaces Dug . | . . . Terrain Destroyed 75 | . . 75 Melee . | . . . Projectile . | . . . AOE 75 | . . 75 Terrain Rammed . | . . . Walls Destroyed . | . . . Machines Disabled . | . . . Actions | -11 -10 -10 --------- Run | Jun Mat Min Total 378 | 44 79 255 Wait 13 | . . 13 Move 310 | 31 60 219 Hop . | . . . Pick Up 18 | 7 6 5 Fast Attach 1 | . . 1 Attach 7 | 6 . 1 Detach . | . . . Swap . | . . . Drop 4 | . . 4 Fire 25 | . 13 12 Melee . | . . . Ram . | . . . Kick . | . . . Crush . | . . . Escape Stasis . | . . . Rewire . | . . . Trap . | . . . Miscellaneous . | . . . Route ------- -11/Junkyard -10/Materials -10/Mines History --------- Turn | Location | Event 12 | -11/Junkyard | Discovered new exit (range 16) 62 | -11/Junkyard | Entered Materials 129 | -10/Materials | Discovered new exit (range 15) 177 | -10/Materials | Entered Mines 226 | -10/Mines | A weapon hastily lodged in a ceiling crevice suddenly fell to the ground 286 | -10/Mines | Found a hidden stash of uninstalled traps 307 | -10/Mines | Build established: Mutant 331 | -10/Mines | Assembled infested the area 378 | -10/Mines | Core integrity fell below 50% 535 | -10/Mines | Core integrity fell below 20% 538 | -10/Mines | Destroyed by D-53 Grenadier with Mini Grenade Launcher Last Messages --------------- 00426_ The unstable cave ceiling collapses. 00429_ U-05 Engineer lays Concrete. 00431_ R-06 Scavenger collects Aluminum Leg. 00432_ U-05 Engineer lays Concrete. 00438_ The unstable cave ceiling collapses. 00438_ U-05 Engineer lays Concrete. 00439_ U-05 Engineer builds a Wall. 00443_ U-05 Engineer lays Concrete. 00443_ Searching scrap... 00443_ Found Flight Unit. 00443_ Found Grenade Launcher. 00443_ Found 12 Matter. 00444_ Acquired 12 matter. 00445_ U-05 Engineer builds a Wall. 00479_ System corrupted: Matter fused (-9). 00534_ Aluminum Leg destroyed. 00536_ Rocket Launcher destroyed. 00536_ Lgt. Assault Rifle destroyed. 00536_ Ion Engine destroyed. 00538_ D-53 Grenadier destroyed. Map ----- +----------------------------------------------------+ | | | | | | | | | | | | | | | | | | | | | | | | | | | | | | | ???????????????????????????????????????????? | | ?????????????????????##????????????????????? | | ??????????????????#### #????####???????????? | | ??????????????????? ??## ##??????????? | | ??????????????????## ### #??????????? | | ?????????????????## #??????????? | | ????????????????## #???????????? | | ????????????????# #???????????? | | ?????????????#### #???????????? | | ????????? #???????????? | | ????????? @ #?????####??? | | ????????????##### #??## ##?? | | ????????????????## ##?## #?? | | ?????????????????# d #### #?? | | #????????????????# # # #?? | | ##???????????????### # #?? | | ##????????????????# # #?? | | ##???????????????## ?#### #??? | | = ###??????????????#u%! #??? | | *%=" ##???????????# = ## #??? | | ####?????? # k% #??? | | * # #### #??? | | ## %%= % ##### # #####??# ##??? | | ??##### #### %=| ?????######???????# ##???? | | ??????# #??# =?????????????????????# #????? | | ?????## ###% ?????????????????####?# #????? | | ????## =?????????????????## ### #????? | | ???## ?????????????????# ## #????? | | ???? %=!?????############## ## ###??? | | ????? =%?????## ## = # #??? | | ?????? %%#?????# # #??? | | ??????#!!##?#### ] ######### #??? | | ?????## #?# # #???????## #??? | | ??#### #?# # #####????????## #?? | | ?## ### ##?????????????## #?? | +----------------------------------------------------+ Best States ------------- Heat Dissipation 25 Energy Generation 10 Energy Capacity 400 Matter Stores 194 Matter Capacity 300 Sight Range 16 Terrain Scan Density 10 Resistance: KI 20 Resistance: TH 20 Resistance: EX 20 Resistance: EM 20 Resistance: I 20 Resistance: S 20 Resistance: P 20 Evasion (%) 55 Offensive Hacking 10 Item Schematics ----------------- None Robot Schematics ------------------ None Fabricated ------------ Nothing Alien Tech Used ----------------- None Achievements -------------- None Challenges ------------ None Game ------ Seed FortressAssaultWings Manual? 0 Play Time 00:08:16 Cumulative 36.7 hours Start 2023.12.31 @ 20:53:27 End 2023.12.31 @ 20:59:26 Sessions 1 Manual Loads 0 Difficulty Adventurer Special Mode None Game No. 7 Rogue 0 Adventurer 7 Explorer 0 Win Type - Total 1 Types 1/0/0/0/0/0/0/0/0 Lore% 11 Gallery% 31 Achievement% 28 Wizard Run 0 Options --------- ASCII 0 Keyboard 0 Movement Mouse Keybinds 0 Fullscreen 1 Font 18/TerminusBold Map View 76x50 Tactical HUD 1 Map Filters NONE Filters NONE Steam 0 RUN: 0e1efe98-958f-41c7-986e-38d6fb129530